bitfinex-derivatives/quotes_BNBF0:USTF0_20250630
["timestamp","ask_amount","ask_price","bid_price","bid_amount"]
[1751261797238,0.26573507,655.44,654.51,1.1256571]
[1751261797441,0.26573507,655.44,654.52,1.1256571]
[1751261797640,0.26573507,655.44,654.53,1.1256571]
[1751261797838,0.26573507,655.44,654.54,1.1256571]
[1751261798037,0.26573507,655.44,654.35,2.727]
[1751261798240,0.26573507,655.44,654.36,1.1255456]
[1751261798440,0.26573507,655.44,654.37,1.1255456]
[1751261798643,0.26573507,655.44,654.38,1.1255456]
[1751261798939,0.26573507,655.44,654.35,2.727]
[1751261798940,0.26573507,655.44,654.39,1.1255456]
[1751261799140,0.26573507,655.44,654.4,1.1255456]
[1751261799341,0.26573507,655.44,654.41,1.1255456]
[1751261799540,0.26573507,655.44,654.42,1.1255456]
[1751261799745,0.26573507,655.44,654.43,1.1255456]
[1751261799941,0.26573507,655.44,654.44,1.1255456]
[1751261800243,0.26573507,655.44,654.45,1.1255456]
[1751261800444,0.26573507,655.44,654.46,1.1255456]
[1751261800645,0.26573507,655.44,654.47,1.1255456]
[1751261800845,0.26573507,655.44,654.48,1.1255456]
[1751261801045,0.26573507,655.44,654.49,1.1255456]
[1751261801243,0.26573507,655.44,654.5,1.1255456]
[1751261801446,0.26573507,655.44,654.35,2.727]
[1751261801447,0.26573507,655.44,654.51,1.1255456]
[1751261801648,0.26573507,655.44,654.52,1.1255456]
[1751261801847,0.26573507,655.44,654.53,1.1255456]
[1751261802147,0.26573507,655.44,654.54,1.1255456]
[1751261802344,0.26573507,655.44,654.35,2.727]
[1751261802646,0.26573507,655.44,654.36,1.1254881]
[1751261802848,3.7808272,655.39,654.37,1.1254881]
[1751261803050,3.7808272,655.39,654.38,1.1254881]
[1751261803245,3.7808272,655.39,654.39,1.1254881]
[1751261803449,3.7808272,655.39,654.4,1.1254881]
[1751261803650,3.7808272,655.39,654.41,1.1254881]
[1751261803947,3.7808272,655.39,654.42,1.1254881]
[1751261804151,3.7808272,655.39,654.43,1.1254881]
[1751261804348,3.7808272,655.38,654.44,1.1254881]
[1751261804545,3.7808272,655.38,654.45,1.1254881]
[1751261804745,3.7808272,655.38,654.46,1.1254881]
[1751261804948,3.7808272,655.38,654.47,1.1254881]
[1751261805152,3.7808272,655.38,654.48,1.1254881]
[1751261805452,3.7808272,655.41,654.49,1.1254881]
[1751261805747,3.7808272,655.41,654.5,1.1254881]
[1751261805950,3.7808272,655.41,654.51,1.1254881]
[1751261806152,3.7808272,655.41,654.52,1.1254881]
[1751261806446,3.7808272,655.41,654.35,2.727]
[1751261806651,3.7808272,655.41,654.36,1.1254548]
[1751261806850,3.7808272,655.41,654.37,1.1254548]
[1751261807047,3.7808272,655.41,654.38,1.1254548]
[1751261807249,3.7808272,655.41,654.39,1.1254548]
[1751261807446,3.7808272,655.41,654.4,1.1254548]
[1751261807747,3.7808272,655.41,654.41,1.1254548]
[1751261807951,3.7808272,655.4,654.42,1.1254548]
[1751261808152,3.7808272,655.4,654.43,1.1254548]
[1751261808348,3.7808272,655.4,654.44,1.1254548]
[1751261808552,3.7808272,655.4,654.45,1.1254548]
[1751261808853,3.7808272,655.4,654.46,1.1254548]
[1751261809053,0.26573507,655.44,654.47,1.1254548]
[1751261809251,0.26573507,655.44,654.35,2.727]
[1751261809252,0.26573507,655.44,654.48,1.1254548]
[1751261809452,0.26573507,655.44,654.49,1.1254548]
[1751261809648,0.26573507,655.44,654.5,1.1254548]
[1751261809852,0.26573507,655.44,654.51,1.1254548]
[1751261810053,0.26573507,655.44,654.52,1.1254548]
[1751261810252,0.26573507,655.44,654.35,2.727]
[1751261810547,0.26573507,655.44,654.36,1.1253679]
[1751261810753,0.26573507,655.44,654.35,2.727]
[1751261810754,0.26573507,655.44,654.37,1.1253679]
[1751261811052,0.26573507,655.44,654.38,1.1253679]
[1751261811253,0.26573507,655.44,654.39,1.1253679]
[1751261811454,0.26573507,655.44,654.4,1.1253679]
[1751261811654,0.26573507,655.44,654.41,1.1253679]
[1751261811854,0.26573507,655.44,654.42,1.1253679]
[1751261812051,0.26573507,655.44,654.43,1.1253679]
[1751261812253,0.26573507,655.44,654.44,1.1253679]
[1751261812450,0.26573507,655.44,654.45,1.1253679]
[1751261812654,0.26573507,655.44,654.46,1.1253679]
[1751261812855,0.26573507,655.44,654.47,1.1253679]
[1751261813055,0.26573507,655.44,654.48,1.1253679]
[1751261813252,0.26573507,655.44,654.49,1.1253679]
[1751261813453,0.26573507,655.44,654.5,1.1253679]
[1751261813750,0.26573507,655.44,654.51,1.1253679]
[1751261813956,0.26573507,655.44,654.52,1.1253679]
[1751261814253,0.26573507,655.44,654.53,1.1253814]
[1751261814454,0.26573507,655.44,654.35,2.727]
[1751261814657,0.26573507,655.44,654.36,1.125377]
[1751261814852,0.26573507,655.44,654.37,1.125377]
[1751261815059,0.26573507,655.44,654.38,1.125377]
[1751261815352,0.26573507,655.44,654.39,1.125377]
[1751261815557,0.26573507,655.44,654.4,1.125377]
[1751261815856,0.26573507,655.44,654.41,1.125377]
[1751261816154,0.26573507,655.44,654.42,1.125377]
[1751261816353,0.26573507,655.44,654.43,1.125377]
[1751261816558,0.26573507,655.44,654.44,1.125377]
[1751261816751,0.26573507,655.44,654.45,1.125377]
[1751261816952,0.26573507,655.44,654.46,1.125377]
[1751261817153,0.26573507,655.44,654.47,1.125377]
[1751261817353,0.26573507,655.44,654.48,1.125377]
[1751261817556,0.26573507,655.44,654.49,1.125377]
[1751261817754,0.26573507,655.44,654.5,1.125377]
[1751261817954,0.26573507,655.44,654.51,1.125377]
[1751261818153,0.26573507,655.44,654.52,1.125377]
[1751261818456,0.26573507,655.44,654.53,1.125377]
[1751261818659,0.26573507,655.44,654.35,2.727]
[1751261818954,0.26573507,655.44,654.36,1.1254021]
[1751261819159,0.26573507,655.44,654.37,1.1254021]
[1751261819356,0.26573507,655.44,654.38,1.1254021]
[1751261819558,0.26573507,655.44,654.39,1.1254021]
[1751261819757,0.26573507,655.44,654.4,1.1254021]
[1751261819956,0.26573507,655.44,654.41,1.1254021]
[1751261820257,0.26573507,655.44,654.42,1.1254021]
[1751261820462,0.26573507,655.44,654.43,1.1254021]
[1751261820661,0.26573507,655.44,654.44,1.1254021]
[1751261820856,0.26573507,655.44,654.45,1.1254021]
[1751261821057,0.26573507,655.44,654.46,1.1254021]
[1751261821264,0.26573507,655.44,654.47,1.1254021]
[1751261821463,0.26573507,655.44,654.48,1.1254021]
[1751261821664,0.26573507,655.44,654.49,1.1254021]
[1751261821865,0.26573507,655.44,654.5,1.1254021]
[1751261822164,0.26573507,655.44,654.51,1.1254021]
[1751261822362,0.26573507,655.44,654.52,1.1254021]
[1751261822561,0.26573507,655.44,654.53,1.1254021]
[1751261822762,0.26573507,655.44,654.54,1.1254326]
[1751261822960,0.26573507,655.44,654.29,1.14408]
[1751261823166,0.26573507,655.44,654.3,1.1254326]
[1751261823366,0.26573507,655.44,654.31,1.1254326]
[1751261823566,0.26573507,655.44,654.32,1.1254326]
[1751261823765,0.26573507,655.44,654.33,1.1254326]
[1751261823969,0.26573507,655.44,654.34,1.1254326]
[1751261824164,0.26573507,655.44,654.35,1.1254326]
[1751261824367,0.26573507,655.44,654.36,1.1254326]
[1751261824668,0.26573507,655.44,654.37,1.1254326]
[1751261824865,0.26573507,655.44,654.38,1.1254326]
[1751261825064,0.26573507,655.44,654.39,1.1254326]
[1751261825265,0.26573507,655.44,654.4,1.1254326]
[1751261825470,0.26573507,655.44,654.41,1.1254326]
[1751261825670,0.26573507,655.44,654.42,1.1254326]
[1751261825870,0.26573507,655.44,654.43,1.1254326]
[1751261826067,0.26573507,655.44,654.44,1.1254326]
[1751261826267,0.26573507,655.44,654.45,1.1254326]
[1751261826470,0.26573507,655.44,654.19,1.14408]
[1751261826471,0.26573507,655.44,654.46,1.1254326]
[1751261826671,0.26573507,655.44,654.47,1.1254326]
[1751261826868,0.26573507,655.44,654.48,1.1254326]
[1751261827170,0.26573507,655.44,654.49,1.1254326]
[1751261827369,0.26573507,655.44,654.5,1.1254326]
[1751261827568,0.26573507,655.44,654.51,1.1254326]
[1751261827771,0.26573507,655.44,654.52,1.1254326]
[1751261827969,0.26573507,655.44,654.48,2.953]
[1751261828272,0.26573507,655.44,654.49,1.1255047]
[1751261828469,0.26573507,655.44,654.5,1.1255047]
[1751261828767,0.26573507,655.44,654.51,1.1255047]
[1751261828973,0.26573507,655.44,654.52,1.1255047]
[1751261829276,0.26573507,655.44,654.48,2.953]
[1751261829470,0.26573507,655.44,654.49,1.1255428]
[1751261829770,0.26573507,655.44,654.5,1.1255428]
[1751261830071,0.26573507,655.44,654.51,1.1255428]
[1751261830268,0.26573507,655.44,654.52,1.1255428]
[1751261830475,0.26573507,655.44,654.53,1.1255428]
[1751261830671,0.26573507,655.44,654.48,2.953]
[1751261830872,0.26573507,655.44,654.49,1.1256948]
[1751261831069,0.26573507,655.44,654.5,1.1256948]
[1751261831273,0.26573507,655.44,654.51,1.1256948]
[1751261831573,0.26573507,655.44,654.52,1.1256948]
[1751261831774,0.26573507,655.44,654.53,1.1256948]
[1751261831975,0.26573507,655.44,654.48,2.953]
[1751261832171,0.26573507,655.44,654.49,1.1258743]
[1751261832374,0.26573507,655.44,654.5,1.1258743]
[1751261832573,0.26573507,655.44,654.51,1.1258743]
[1751261832773,0.26573507,655.44,654.52,1.1258743]
[1751261832976,0.26573507,655.44,654.53,1.1258743]
[1751261833179,0.26573507,655.44,654.54,1.1258743]
[1751261833375,0.26573507,655.44,654.48,2.953]
[1751261833673,0.26573507,655.44,654.49,1.1263647]
[1751261833878,0.26573507,655.44,654.5,1.1263647]
[1751261834077,0.26573507,655.44,654.51,1.1263647]
[1751261834277,0.26573507,655.44,654.52,1.1263647]
[1751261834473,0.26573507,655.44,654.53,1.1263647]
[1751261834677,0.26573507,655.44,654.54,1.1263647]
[1751261834978,0.26573507,655.44,654.55,1.1263647]
[1751261835173,0.26573507,655.44,654.56,1.1263647]
[1751261835375,0.26573507,655.44,654.57,1.1263647]
[1751261835676,0.26573507,655.44,654.48,2.953]
[1751261835876,0.26573507,655.44,654.49,1.1269092]
[1751261836075,0.26573507,655.44,654.5,1.1269092]
[1751261836276,0.26573507,655.44,654.51,1.1269092]
[1751261836473,0.26573507,655.44,654.52,1.1269092]
[1751261836673,0.26573507,655.44,654.53,1.1269092]
[1751261836977,0.26573507,655.44,654.54,1.1269092]
[1751261837176,0.26573507,655.44,654.55,1.1269092]
[1751261837373,0.26573507,655.44,654.56,1.1269092]
[1751261837575,0.26573507,655.44,654.57,1.1269092]
[1751261837875,0.26573507,655.44,654.48,2.953]
[1751261838076,0.26573507,655.44,654.49,1.1268766]
[1751261838277,0.26573507,655.44,654.5,1.1268766]
[1751261838479,0.26573507,655.44,654.51,1.1268766]
[1751261838673,0.26573507,655.44,654.52,1.1268766]
[1751261838878,0.26573507,655.44,654.53,1.1268766]
[1751261839073,0.26573507,655.44,654.54,1.1268766]
[1751261839278,0.26573507,655.44,654.55,1.1268766]
[1751261839474,0.26573507,655.44,654.56,1.1268766]
[1751261839778,0.26573507,655.44,654.57,1.1268766]
[1751261840078,0.26573507,655.44,654.48,2.953]
[1751261840278,0.26573507,655.44,654.49,1.127328]
[1751261840475,0.26573507,655.44,654.5,1.127328]
[1751261840674,0.26573507,655.44,654.51,1.127328]
[1751261840876,0.26573507,655.44,654.52,1.127328]
[1751261841073,0.26573507,655.44,654.53,1.127328]
[1751261841275,0.26573507,655.44,654.54,1.127328]
[1751261841579,0.26573507,655.44,654.48,2.953]
[1751261841580,0.26573507,655.44,654.55,1.127328]
[1751261841875,0.26573507,655.44,654.48,2.953]
[1751261841876,0.26573507,655.44,654.56,1.127328]
[1751261842080,0.26573507,655.44,654.57,1.127328]
[1751261842275,0.26573507,655.44,654.48,2.953]
[1751261842479,0.26573507,655.44,654.49,1.1273089]
[1751261842675,0.26573507,655.44,654.5,1.1273089]
[1751261842974,0.26573507,655.44,654.51,1.1273089]
[1751261843179,0.26573507,655.44,654.52,1.1273089]
[1751261843377,0.26573507,655.44,654.53,1.1273089]
[1751261843577,0.26573507,655.44,654.54,1.1273089]
[1751261843777,0.26573507,655.44,654.55,1.1273089]
[1751261843978,0.26573507,655.44,654.56,1.1273089]
[1751261844182,0.26573507,655.44,654.48,2.953]
[1751261844385,0.26573507,655.44,654.49,1.1272931]
[1751261844682,0.26573507,655.44,654.5,1.1272931]
[1751261844978,0.26573507,655.44,654.51,1.1272931]
[1751261845284,0.26573507,655.44,654.52,1.1272931]
[1751261845476,0.26573507,655.44,654.53,1.1272931]
[1751261845678,0.26573507,655.44,654.54,1.1272931]
[1751261845978,0.26573507,655.44,654.55,1.1272931]
[1751261846182,0.26573507,655.44,654.56,1.1272931]
[1751261846379,0.26573507,655.44,654.48,2.953]
[1751261846579,0.26573507,655.44,654.49,1.1272757]
[1751261846778,0.26573507,655.44,654.5,1.1272757]
[1751261847079,3.7808272,655.6,654.51,1.1272757]
[1751261847277,3.7808272,655.61,654.52,1.1272757]
[1751261847476,3.7808272,655.61,654.53,1.1272757]
[1751261847681,3.7808272,655.61,654.48,2.953]
[1751261847682,3.7808272,655.61,654.54,1.1272757]
[1751261847977,3.7808272,655.61,654.55,1.1272757]
[1751261848182,3.7808272,655.61,654.56,1.1272757]
[1751261848379,3.7808272,655.61,654.48,2.953]
[1751261848579,3.7808272,655.61,654.49,1.127266]
[1751261848778,3.7808272,655.61,654.5,1.127266]
[1751261848983,3.7808272,655.61,654.51,1.127266]
[1751261849278,3.7808272,655.61,654.52,1.127266]
[1751261849478,3.7808272,655.61,654.53,1.127266]
[1751261849678,3.7808272,655.61,654.54,1.127266]
[1751261849883,3.7808272,655.61,654.55,1.127266]
[1751261850084,3.7808272,655.61,654.56,1.127266]
[1751261850284,3.7808272,655.61,654.48,2.953]
[1751261850480,3.7808272,655.61,654.49,1.1272578]
[1751261850780,0.26576145,655.34,654.5,1.1272578]
[1751261850980,0.26576145,655.34,654.51,1.1272578]
[1751261851185,0.26576145,655.34,654.52,1.1272578]
[1751261851480,0.26576145,655.34,654.53,1.1272578]
[1751261851680,0.26576145,655.34,654.54,1.1272578]
[1751261851878,0.26576145,655.34,654.55,1.1272578]
[1751261852078,0.26576145,655.34,654.56,1.1272578]
[1751261852284,0.26576145,655.34,654.46,2.289]
[1751261852484,0.26576145,655.34,654.47,1.127252]
[1751261852679,0.26576145,655.34,654.48,1.127252]
[1751261852980,0.26576145,655.34,654.49,1.127252]
[1751261853184,0.26576145,655.34,654.5,1.127252]
[1751261853385,0.26576145,655.34,654.51,1.127252]
[1751261853585,0.26576145,655.34,654.52,1.127252]
[1751261853783,0.26576145,655.34,654.53,1.127252]
[1751261853985,0.26576145,655.34,654.54,1.127252]
[1751261854185,0.26576145,655.34,654.55,1.127252]
[1751261854388,0.26576145,655.34,654.54,3.228]
[1751261854588,4.04658865,655.34,654.55,1.1272467]
[1751261854784,4.04658865,655.34,654.54,3.228]
[1751261854989,4.04658865,655.34,654.55,1.12724672]
[1751261855286,4.04658865,655.34,654.54,3.228]
[1751261855486,4.04658865,655.34,654.55,1.12724597]
[1751261855690,4.04658865,655.34,654.54,3.228]
[1751261855888,4.04658865,655.34,654.55,1.12724456]
[1751261856087,4.04658865,655.34,654.54,3.228]
[1751261856291,3.7808272,655.33,654.55,1.12724389]
[1751261856492,3.7808272,655.33,654.54,3.228]
[1751261856794,0.26576145,655.34,654.55,1.1272427]
[1751261856990,0.26576145,655.34,654.56,1.1272427]
[1751261857194,0.26576145,655.34,654.54,3.228]
[1751261857393,0.26576145,655.34,654.55,1.1272421]
[1751261857589,0.26576145,655.34,654.56,1.1272421]
[1751261857793,0.26576145,655.34,654.54,3.228]
[1751261857995,0.26576145,655.34,654.55,1.1272411]
[1751261858194,0.26576145,655.34,654.56,1.1272411]
[1751261858393,0.26576145,655.34,654.54,3.228]
[1751261858694,0.26576145,655.34,654.55,1.1272399]
[1751261858894,0.26576145,655.34,654.56,1.1272399]
[1751261859094,0.26576145,655.34,654.54,3.228]
[1751261859297,0.26576145,655.34,654.55,1.1272395]
[1751261859593,0.26576145,655.34,654.56,1.1272395]
[1751261859798,0.26576145,655.34,654.54,3.228]
[1751261859998,0.26576145,655.34,654.55,1.1272386]
[1751261860198,0.26576145,655.34,654.56,1.1272386]
[1751261860394,0.26576145,655.34,654.54,3.228]
[1751261860599,0.26576145,655.34,654.55,1.1272274]
[1751261860799,0.26576145,655.34,654.56,1.1272274]
[1751261861000,0.26576145,655.34,654.54,3.228]
[1751261861200,0.26576145,655.34,654.55,1.1272274]
[1751261861398,0.26576145,655.34,654.56,1.1272274]
[1751261861598,0.26576145,655.34,654.54,3.228]
[1751261861898,0.26576145,655.34,654.55,1.1272287]
[1751261862097,0.26576145,655.34,654.56,1.1272287]
[1751261862304,0.26576145,655.34,654.54,3.228]
[1751261862597,0.26576145,655.34,654.55,1.12723]
[1751261862801,0.26576145,655.34,654.56,1.12723]
[1751261862996,0.26576145,655.34,654.54,3.228]
[1751261863299,0.26576145,655.34,654.55,1.12723]
[1751261863500,0.26576145,655.34,654.56,1.12723]
[1751261863797,0.26576145,655.34,654.54,3.228]
[1751261863998,0.26576145,655.34,654.55,1.1272312]
[1751261864201,0.26576145,655.34,654.56,1.1272312]
[1751261864402,0.26576145,655.34,654.54,3.228]
[1751261864603,0.26576145,655.34,654.55,1.1272325]
[1751261864900,0.26576145,655.34,654.56,1.1272325]
[1751261865202,0.26576145,655.34,654.54,3.228]
[1751261865500,0.26576145,655.34,654.55,1.1272326]
[1751261865700,0.26576145,655.34,654.56,1.1272326]
[1751261865899,0.26576145,655.34,654.54,3.228]
[1751261866198,0.26576145,655.34,654.55,1.1272339]
[1751261866402,0.26576145,655.34,654.56,1.1272339]
[1751261866600,0.26576145,655.34,654.54,3.228]
[1751261866801,0.26576145,655.34,654.55,1.1272352]
[1751261867003,0.26576145,655.34,654.54,3.228]
[1751261867202,0.26576145,655.34,654.55,1.1272352]
[1751261867406,0.26576145,655.34,654.56,1.1272352]
[1751261867604,0.26576145,655.34,654.54,3.228]
[1751261867804,0.26576145,655.34,654.55,1.1272366]
[1751261868002,0.26576145,655.34,654.56,1.1272366]
[1751261868205,0.26576145,655.34,654.54,3.228]
[1751261868505,0.26576145,655.34,654.55,1.1272368]
[1751261868707,0.26576145,655.34,654.56,1.1272368]
[1751261868904,0.26576145,655.34,654.54,3.228]
[1751261869103,0.26576145,655.34,654.55,1.127293]
[1751261869307,0.26576145,655.34,654.56,1.127293]
[1751261869504,0.26576145,655.34,654.54,3.228]
[1751261869703,0.26576145,655.34,654.55,1.1272944]
[1751261870007,0.26576145,655.34,654.56,1.1272944]
[1751261870308,0.26576145,655.34,654.54,3.228]
[1751261870610,0.26576145,655.34,654.55,1.1272958]
[1751261870805,0.26576145,655.34,654.56,1.1272958]
[1751261871003,0.26576145,655.34,654.54,3.228]
[1751261871203,0.26576145,655.34,654.55,1.1272958]
[1751261871405,0.26576145,655.34,654.56,1.1272958]
[1751261871706,0.26576145,655.34,654.54,3.228]
[1751261871904,0.26576145,655.34,654.55,1.1272973]
[1751261872104,0.26576145,655.34,654.56,1.1272973]
[1751261872307,0.26576145,655.34,654.54,3.228]
[1751261872608,0.26576145,655.34,654.55,1.127299]
[1751261872905,0.26576145,655.34,654.56,1.127299]
[1751261873104,0.26576145,655.34,654.54,3.228]
[1751261873304,0.26576145,655.34,654.55,1.1272996]
[1751261873507,0.26576145,655.34,654.56,1.1272996]
[1751261873706,0.26576145,655.34,654.54,3.228]
[1751261873909,0.26576145,655.34,654.55,1.1273002]
[1751261874106,0.26576145,655.34,654.56,1.1273002]
[1751261874309,0.26576145,655.34,654.57,1.1273002]
[1751261874511,0.26576145,655.34,654.58,1.1273002]
[1751261874804,0.26576145,655.34,654.54,3.228]
[1751261875009,0.26576145,655.34,654.55,1.1273015]
[1751261875209,0.26576145,655.34,654.56,1.1273015]
[1751261875405,0.26576145,655.34,654.54,3.228]
[1751261875406,0.26576145,655.34,654.57,1.1273015]
[1751261875606,0.26576145,655.34,654.58,1.1273015]
[1751261875811,0.26576145,655.34,654.54,3.228]
[1751261876010,0.26576145,655.34,654.55,1.1273029]
[1751261876211,0.26576145,655.34,654.56,1.1273029]
[1751261876511,0.26576145,655.34,654.57,1.1273029]
[1751261876711,0.26576145,655.34,654.58,1.1273029]
[1751261876910,0.26576145,655.34,654.46,2.289]
[1751261877108,0.26576145,655.34,654.47,1.1273042]
[1751261877311,0.26576145,655.34,654.48,1.1273042]
[1751261877611,0.26576145,655.34,654.49,1.1273042]
[1751261877808,0.26576145,655.34,654.5,1.1273042]
[1751261878112,0.26576145,655.34,654.51,1.1273042]
[1751261878312,0.26576145,655.34,654.52,1.1273042]
[1751261878514,0.26576145,655.34,654.53,1.1273042]
[1751261878714,0.26576145,655.34,654.54,1.1273042]
[1751261878914,0.26576145,655.34,654.55,1.1273042]
[1751261879114,0.26576145,655.34,654.56,1.1273042]
[1751261879309,0.26576145,655.34,654.33,1.14408]
[1751261879310,0.26576145,655.34,654.57,1.1273042]
[1751261879513,0.26576145,655.34,654.58,1.1273042]
[1751261879715,0.26576145,655.34,654.34,3.33]
[1751261879912,0.26576145,655.34,654.35,1.1273085]
[1751261880115,0.26576145,655.34,654.36,1.1273085]
[1751261880315,0.26576145,655.34,654.37,1.1273085]
[1751261880615,0.26576145,655.34,654.38,1.1273085]
[1751261880810,0.26576145,655.34,654.39,1.1273085]
[1751261881016,0.26576145,655.34,654.4,1.1273085]
[1751261881316,0.26576145,655.34,654.41,1.1273085]
[1751261881517,0.26576145,655.34,654.42,1.1273085]
[1751261881816,0.26576145,655.34,654.43,1.1273085]
[1751261882019,0.26576145,655.34,654.44,1.1273085]
[1751261882312,0.26576145,655.34,654.45,1.1273085]
[1751261882613,0.26576145,655.34,654.46,1.1273085]
[1751261882812,0.26576145,655.34,654.38,2.855]
[1751261882813,0.26576145,655.34,654.47,1.1273085]
[1751261883017,0.26576145,655.34,654.48,1.1273085]
[1751261883214,0.26576145,655.34,654.49,1.1273085]
[1751261883415,0.26576145,655.34,654.5,1.1273085]
[1751261883613,0.26576145,655.34,654.51,1.1273085]
[1751261883818,0.26576145,655.34,654.52,1.1273085]
[1751261884019,0.26576145,655.34,654.53,1.1273085]
[1751261884220,0.26576145,655.34,654.54,1.1273085]
[1751261884421,0.26576145,655.34,654.55,1.1273085]
[1751261884720,0.26576145,655.34,654.56,1.1273085]
[1751261884919,0.26576145,655.34,654.57,1.1273085]
[1751261885120,0.26576145,655.34,654.58,1.1273085]
[1751261885322,0.26576145,655.34,654.38,2.855]
[1751261885521,0.26576145,655.34,654.39,1.1273169]
[1751261885721,0.26576145,655.34,654.4,1.1273169]
[1751261885922,0.26576145,655.34,654.41,1.1273169]
[1751261886222,0.26576145,655.34,654.42,1.1273169]
[1751261886419,0.26576145,655.34,654.43,1.1273169]
[1751261886719,0.26576145,655.34,654.44,1.1273169]
[1751261886923,0.26576145,655.34,654.45,1.1273169]
[1751261887222,0.26576145,655.34,654.46,1.1273169]
[1751261887522,0.26576145,655.34,654.47,1.1273169]
[1751261887819,0.26576145,655.34,654.48,1.1273169]
[1751261888118,0.26576145,655.34,654.49,1.1273169]
[1751261888319,0.26576145,655.34,654.5,1.1273169]
[1751261888618,0.26576145,655.34,654.51,1.1273169]
[1751261888919,0.26576145,655.34,654.52,1.1273169]
[1751261889117,0.26576145,655.34,654.53,1.1273169]
[1751261889319,0.26576145,655.34,654.54,1.1273169]
[1751261889522,0.26576145,655.34,654.55,1.1273169]
[1751261889720,0.26576145,655.34,654.56,1.1273169]
[1751261889918,0.26576145,655.34,654.57,1.1273169]
[1751261890122,0.26576145,655.34,654.58,1.1273169]
[1751261890321,0.26576145,655.34,654.38,2.855]
[1751261890620,0.26576145,655.34,654.39,1.1273219]
[1751261890823,0.26576145,655.34,654.4,1.1273219]
[1751261891122,0.26576145,655.34,654.41,1.1273219]
[1751261891319,0.26576145,655.34,654.38,2.855]
[1751261891320,0.26576145,655.34,654.42,1.1273219]
[1751261891520,0.26576145,655.34,654.43,1.1273219]
[1751261891722,0.26576145,655.34,654.44,1.1273219]
[1751261891926,0.26576145,655.34,654.45,1.1273219]
[1751261892125,0.26576145,655.34,654.46,1.1273219]
[1751261892323,0.26576145,655.34,654.47,1.1273219]
[1751261892525,0.26576145,655.34,654.48,1.1273219]
[1751261892724,0.26576145,655.34,654.49,1.1273219]
[1751261892923,0.26576145,655.34,654.5,1.1273219]
[1751261893123,0.26576145,655.34,654.51,1.1273219]
[1751261893323,0.26576145,655.34,654.52,1.1273219]
[1751261893524,0.26576145,655.34,654.53,1.1273219]
[1751261893824,0.26576145,655.34,654.54,1.1273219]
[1751261894024,0.26576145,655.34,654.55,1.1273219]
[1751261894224,0.26576145,655.34,654.56,1.1273219]
[1751261894427,0.26576145,655.34,654.57,1.1273219]
[1751261894631,0.26576145,655.34,654.58,1.1273219]
[1751261894832,0.26576145,655.34,654.38,2.855]
[1751261895033,0.26576145,655.34,654.39,1.1273228]
[1751261895234,0.26576145,655.34,654.4,1.1273228]
[1751261895532,0.26576145,655.34,654.41,1.1273228]
[1751261895832,0.26576145,655.34,654.42,1.1273228]
[1751261896029,0.26576145,655.34,654.43,1.1273228]
[1751261896232,0.26576145,655.34,654.44,1.1273228]
[1751261896433,0.26576145,655.34,654.45,1.1273228]
[1751261896630,0.26576145,655.34,654.46,1.1273228]
[1751261896834,0.26576145,655.34,654.47,1.1273228]
[1751261897128,0.26576145,655.34,654.48,1.1273228]
[1751261897327,0.26576145,655.34,654.49,1.1273228]
[1751261897527,0.26576145,655.34,654.5,1.1273228]
[1751261897729,0.26576145,655.34,654.51,1.1273228]
[1751261897933,0.26576145,655.34,654.52,1.1273228]
[1751261898228,0.26576145,655.34,654.53,1.1273228]
[1751261898427,0.26576145,655.34,654.54,1.1273228]
[1751261898635,0.26576145,655.34,654.55,1.1273228]
[1751261898835,0.26576145,655.34,654.56,1.1273228]
[1751261899034,0.26576145,655.34,654.57,1.1273228]
[1751261899334,0.26576145,655.34,654.58,1.1273228]
[1751261899537,0.26576145,655.34,654.38,2.855]
[1751261899832,0.26576145,655.34,654.39,1.1272747]
[1751261900134,0.26576145,655.34,654.4,1.1272747]
[1751261900335,0.26576145,655.34,654.41,1.1272747]
[1751261900635,0.26576145,655.34,654.42,1.1272747]
[1751261900931,0.26576145,655.34,654.43,1.1272747]
[1751261901134,0.26576145,655.34,654.44,1.1272747]
[1751261901434,0.26576145,655.34,654.45,1.1272747]
[1751261901735,0.26576145,655.34,654.46,1.1272747]
[1751261901933,0.26576145,655.34,654.47,1.1272747]
[1751261902134,0.26576145,655.34,654.48,1.1272747]
[1751261902331,0.26576145,655.34,654.49,1.1272747]
[1751261902529,0.26576145,655.34,654.5,1.1272747]
[1751261902732,0.26576145,655.34,654.51,1.1272747]
[1751261902932,0.26576145,655.34,654.52,1.1272747]
[1751261903131,0.26576145,655.34,654.53,1.1272747]
[1751261903431,0.26576145,655.34,654.54,1.1272747]
[1751261903634,0.26576145,655.34,654.55,1.1272747]
[1751261903836,0.26576145,655.34,654.56,1.1272747]
[1751261904031,0.26576145,655.34,654.57,1.1272747]
[1751261904236,0.26576145,655.34,654.58,1.1272747]
[1751261904531,0.26576145,655.34,654.49,1.896]
[1751261904831,0.26576145,655.34,654.5,1.1272882]
[1751261905035,0.26576145,655.34,654.51,1.1272882]